Cogmind - Beta 16.1 @@@ ROGUE MODE // 2026.04.05 @ 16:45:58 Player: KURIIRI Result: Destroyed by WZ-PIV(R) with Subdweller Machine Gun Performance ------------- Evolutions (0) 0 Regions Visited (2) 400 Robots Destroyed (39) 195 Value Destroyed (571) 571 Prototype IDs (0) 0 Alien Tech Used (0) 0 Bonus (0) 0 TOTAL SCORE: 1166 Bonus ------- None Cogmind --------- Core Integrity 0/250 Matter 186/300 Energy 99/100 System Corruption 0% Temperature Cool (0) Movement Treading (240) Ox1 Location -10/Subcaves Parts ------- > --- POWER (1) -------- (None) > --- PROPULSION (2) --- Light Treads > --- UTILITY (2) ------ Heat Sink Large Storage Unit > --- WEAPON (2) ------- Assault Rifle > --- INVENTORY (15) --- Ion Engine Light Treads Light Treads Huge Storage Unit Large Matter Pod (150) Improved Terrain Scanner Small Laser Grenade Launcher Peak State ------------ > --- POWER ------------ Ion Engine > --- PROPULSION ------- Light Treads Light Treads > --- UTILITY ---------- Small Storage Unit Seismic Detector > --- WEAPON ----------- Assault Rifle Assault Rifle > --- INVENTORY -------- Ion Engine Wheel Compact Wheel Improved Terrain Scanner Small Laser Assault Rifle Assault Rifle Grenade Launcher [Rating: 8] Favorites ----------- Power Ion Engine Engine Ion Engine Propulsion Light Treads Treads Light Treads Leg Aluminum Leg Wheel Compact Wheel Utility Heat Sink Device Heat Sink Storage Large Storage Unit Weapon Assault Rifle Energy Gun Medium Laser Ballistic Gun Assault Rifle Launcher Grenade Launcher Build | -11 -10 -10 ------- Run | Yrd Mat Sub Slots Evolved . | . . . Power . | . . . Propulsion . | . . . Utility . | . . . Weapon . | . . . Parts Attached 15 | 5 8 2 Power . | . . . Engine . | . . . Core . | . . . Reactor . | . . . Propulsion 5 | 3 1 1 Treads 3 | 2 . 1 Leg . | . . . Wheel 2 | 1 1 . Hover . | . . . Flight . | . . . Utility 4 | 1 3 . Device 2 | 1 1 . Storage 2 | . 2 . Processor . | . . . Hackware . | . . . Protection . | . . . Artifact . | . . . Weapon 6 | 1 4 1 Energy Gun 1 | . 1 . Energy Cannon . | . . . Ballistic Gun 4 | 1 2 1 Ballistic Cannon . | . . . Launcher 1 | . 1 . Special Weapon . | . . . Impact Weapon . | . . . Slashing Weapon . | . . . Piercing Weapon . | . . . Special Melee Weapon . | . . . Unidentified Prototypes . | . . . Parts Lost 8 | . 2 6 Power 1 | . . 1 Propulsion 3 | . 1 2 Utility 1 | . 1 . Weapon 3 | . . 3 Highest Loss Streak 6 | . 2 6 To Critical Strikes 1 | . . 1 Average Backups 8 | 5 8 10 Power 1 | 1 1 1 Propulsion 2 | 3 1 2 Utility 2 | . 2 3 Weapon 3 | 1 3 3 Tool/Special . | . . . Unused Backups 5 | . 1 4 Power . | . . . Propulsion 1 | . . 1 Utility 3 | . 1 2 Weapon 1 | . . 1 Tool/Special . | . . . Average Slot Usage (%) 99 | . 99 94 Engine 13 | . 14 11 Treads 25 | . 24 26 Wheel 2 | . 2 . Device 13 | . 13 14 Storage 14 | . 14 14 Energy Gun 12 | . 12 10 Ballistic Gun 12 | . 11 16 Launcher 3 | . 3 . Peak Build Rating 8 | 7 8 8 Average Rating 7 | 6 7 7 On Entrance 7 | 6 7 8 Avg Prop Armor Cover (%) 13 | . 13 . Naked Turns . | . . . Heaviest Build 91 | 15 91 30 Greatest Support 40 | 40 40 40 Greatest Overweight (x) 5 | . 5 . Average Overweight (x) . | . . . Largest Inventory Capacity 25 | 8 25 15 Average Capacity 17 | 8 18 15 Most Carried 11 | 6 11 11 Average Carried 8 | 5 8 10 Final Capacity 15 | 8 15 15 Final Carried 11 | 5 11 8 Class Distribution -------------------- 100% | Mutant Dominant Class ---------------- Mutant | -10/Materials Mutant | -10/Subcaves Resources | -11 -10 -10 ----------- Run | Yrd Mat Sub Matter Collected 916 | 262 654 . Remotely . | . . . Salvage Created 986 | 107 790 89 Parts 73 | 12 57 4 Haulers Intercepted 2 | . 2 . Recyclers Shooed 5 | . 5 . Parts Field Recycled . | . . . Retrieved Matter . | . . . Parts Self-Destructed . | . . . Prevented . | . . . Parts Restored . | . . . Kills | -11 -10 -10 ------- Run | Yrd Mat Sub Combat Hostiles Destroyed 18 | . 16 2 Guns 8 | . 6 2 AOE 10 | . 10 . Classes Destroyed 10 | 2 7 1 Worker 3 | . 3 . Builder 4 | . 4 . Tunneler 4 | 3 1 . Hauler 2 | . 2 . Recycler 4 | 1 3 . Operator 1 | . 1 . Watcher 3 | . 3 . Swarmer 9 | . 9 . Grunt 7 | . 7 . Subdweller 2 | . . 2 Best Kill Streak 14 | 2 14 2 Combat Bots Only 10 | . 10 2 Max Kills in Single Turn 3 | 1 3 1 Gunslinging . | . . . Exploded 3 | . 3 . Melee . | . . . Uniques/NPCs Destroyed . | . . . Combat | -11 -10 -10 -------- Run | Yrd Mat Sub Hostile Shots Fired 86 | . 45 41 Missed 22 | . 18 4 Hits 64 | . 27 37 Projectile 64 | . 27 37 Critical Strikes 1 | . . 1 Damage Taken 1139 | . 313 826 Core 270 | . 33 237 Absorbed by Shields . | . . . Core Remaining (%) 100 | 100 . . Volleys Fired 115 | 11 78 26 Largest 2 | 2 2 2 Hottest 80 | 60 80 70 Shots Fired 206 | 22 138 46 Gun 192 | 22 124 46 Cannon . | . . . Launcher 14 | . 14 . Special . | . . . Kinetic 120 | 15 67 38 Thermal 72 | 7 57 8 Explosive 14 | . 14 . Electromagnetic . | . . . Robot Hit Streak 13 | 6 13 11 Robot Miss Streak 5 | 2 5 1 Penetration Max . | . . . Secondary Targets 2 | . 1 1 Max Gunslinging Chain 1 | . 1 1 Shots Hit Robots 135 | 13 82 40 Core Hits 51 | 5 42 4 Critical Kills . | . . . Critical Parts Destroyed 1 | . 1 . Critical Strikes 7 | . 5 2 Burn 6 | . 4 2 Destroy 1 | . 1 . Melee Attacks . | . . . Impact . | . . . Slashing . | . . . Piercing . | . . . Sneak Attacks . | . . . Combat Hostiles . | . . . Follow-up Attacks . | . . . Damage Inflicted 2255 | 151 1928 176 Guns 1373 | 151 1046 176 Cannons . | . . . Explosions 881 | . 881 . Melee . | . . . Ramming 1 | . 1 . Kinetic 713 | 109 528 76 Thermal 660 | 42 518 100 Explosive 881 | . 881 . Electromagnetic . | . . . Impact . | . . . Slashing . | . . . Piercing . | . . . Highest Corruption . | . . . Average Corruption . | . . . Corruption Purged . | . . . Corruption Blocked . | . . . Overload Shots . | . . . Overflow Damage 87 | . 87 . Projectiles . | . . . Explosions 87 | . 87 . Melee . | . . . Knockbacks . | . . . Impact . | . . . Kinetic . | . . . Secondary . | . . . Self-Inflicted Damage 52 | . 52 . Shots 3 | . 3 . Rammed . | . . . Targets Rammed 1 | . 1 . Kicked . | . . . Crushed 1 | . 1 . Highest Temperature 108 | . 108 . Average Temperature 35 | . 35 . Received Heat Transfer 111 | . 102 9 Siege Activations . | . . . Martial Activations . | . . . Shielding Activations . | . . . Robots Disrupted . | . . . Combat Hostiles . | . . . Robots Corrupted . | . . . Combat Hostiles . | . . . Parts Fried . | . . . Impact Corruptions . | . . . Robots Melted . | . . . Combat Hostiles . | . . . Parts Melted 3 | . 3 . Heat Transferred 2357 | 100 1813 444 Parts Sabotaged . | . . . Parts Stolen . | . . . Parts Stripped . | . . . Power Chain Reactions . | . . . Alert | -11 -10 -10 ------- Run | Yrd Mat Sub Maximum Alert Level 1 | . 1 . Low Security (%) 33 | 100 29 . Level 1 66 | . 70 . Level 2 . | . . . Level 3 . | . . . Level 4 . | . . . Level 5 . | . . . High Security . | . . . Max Security . | . . . Peak Influence 336 | 10 336 . Initial . | . . . Average 188 | 1 198 . Influence Increases 703 | 20 683 . Destroy 0b10 Robot/C 320 | . 320 . Destroy 0b10 Robot/NC 105 | 20 85 . Destroy Leader 70 | . 70 . Successful Hack 43 | . 43 . Select Force Hacks 60 | . 60 . Disable Machine 30 | . 30 . Destroy Structure 75 | . 75 . Influence Decreases 703 | 20 444 239 Entered New Map 115 | . . 115 Time Decay 528 | 20 424 84 Lost Part 60 | . 20 40 Squads Dispatched 4 | . 4 . Investigation 2 | . 2 . Extermination . | . . . Reinforcement 2 | . 2 . Assault . | . . . Garrison . | . . . Intercept . | . . . Searches Triggered . | . . . Construction Impeded . | . . . Haulers Reinforced . | . . . Active Scanning Responses . | . . . Cargo Convoy Interrupts . | . . . Stealth | -11 -10 -10 --------- Run | Yrd Mat Sub Distress Signals 1 | . 1 . Communications Jammed . | . . . Distress Signals . | . . . Times Spotted 27 | . 24 3 Peak Tracking Total 4 | . 4 2 Tactical Retreats . | . . . Traps | -11 -10 -10 ------- Run | Yrd Mat Sub Traps Triggered . | . . . Indirectly . | . . . Trap Hack Attempts . | . . . Triggered . | . . . Disarmed . | . . . Reprogrammed . | . . . Reused . | . . . Traps Extracted . | . . . Installed . | . . . Triggered . | . . . Machines | -11 -10 -10 ---------- Run | Yrd Mat Sub Machines Disabled 2 | . 2 . Max in Single Turn 1 | . 1 . Machines Repaired . | . . . Machines Dismantled . | . . . Machines Sabotaged . | . . . Overloaded Fab Kills . | . . . Hacking | -11 -10 -10 --------- Run | Yrd Mat Sub Machines Accessed 7 | . 7 . Terminals 5 | . 5 . Fabricators . | . . . Repair Stations . | . . . Recycling Units 2 | . 2 . Scanalyzers . | . . . Garrison Access . | . . . Total Hacks 27 | . 27 . Successful 19 | . 19 . Failed 8 | . 8 . Catastrophic 1 | . 1 . Database Lockouts . | . . . Manual 23 | . 23 . Terminals 22 | . 22 . Fabricators . | . . . Repair Stations . | . . . Recycling Units 5 | . 5 . Scanalyzers . | . . . Garrison Access . | . . . Terminal Hacks 6 | . 6 . Robot Analysis 3 | . 3 . Terminal Index 1 | . 1 . Locate Traps 1 | . 1 . Zone Layout 1 | . 1 . Fabricator Hacks . | . . . Repair Station Hacks . | . . . Recycling Unit Hacks 2 | . 2 . Retrieve Components 2 | . 2 . Scanalyzer . | . . . Garrison Access Hacks . | . . . Unauthorized Hacks 10 | . 10 . Terminals 8 | . 8 . Botnet 3 | . 3 . Skim 5 | . 5 . Fabricators . | . . . Repair Stations . | . . . Recycling Units 2 | . 2 . Tunnel 2 | . 2 . Scanalyzers . | . . . Garrison Access . | . . . Data Cores Recovered . | . . . Used . | . . . Hacking Detections 4 | . 4 . Full Trace Events . | . . . Feedback Events . | . . . Feedback Blocked . | . . . Robot Schematics Acquired . | . . . Robots Built . | . . . Authchips . | . . . Time . | . . . Total Robot Build Rating . | . . . Part Schematics Acquired . | . . . Parts Built . | . . . Authchips . | . . . Time . | . . . Total Part Build Rating . | . . . Part Studies Acquired . | . . . Parts Repaired . | . . . Time . | . . . Parts Recycled . | . . . Recycled Matter . | . . . Retrieved Matter . | . . . Retrieved Components 13 | . 13 . Parts Scanalyzed . | . . . Part Schematics Acquired . | . . . Parts Damaged . | . . . Bothacking | -11 -10 -10 ------------ Run | Yrd Mat Sub Used RIF Installer . | . . . Robots Hacked . | . . . Non-combat . | . . . Combat . | . . . Robot Hacks Applied . | . . . Relay Couplers Released . | . . . Fabnet Peak Effective % . | . . . Robots Rewired . | . . . Allies Hacked . | . . . Hacks Repelled . | . . . Allies | -11 -10 -10 -------- Run | Yrd Mat Sub Total Allies . | . . . Largest Group . | . . . Highest-Rated Group . | . . . Highest-Rated Ally . | . . . Total Orders . | . . . Ally Attacks . | . . . Total Damage . | . . . Kills . | . . . Allies Corrupted . | . . . Allies Melted . | . . . Intel | -11 -10 -10 ------- Run | Yrd Mat Sub Active Infowar (turns) 583 | 46 537 . Seismic 583 | 46 537 . Robot Analysis Total 3 | . 3 . Derelict Logs Recovered 1 | . . 1 Drone Launches . | . . . Drone Recoveries . | . . . Exploration | -11 -10 -10 ------------- Run | Yrd Mat Sub Turns Passed 1764 | 78 1470 216 Spaces Moved 707 | 29 589 89 Core . | . . . Treads 614 | 8 517 89 Legs 21 | 21 . . Wheels 72 | . 72 . Hover . | . . . Flight . | . . . Fastest Speed 120 | 120 160 160 Average Speed 180 | 131 186 160 Slowest Speed 320 | 160 320 160 Overloaded Moves . | . . . Propulsion Burnouts . | . . . Robots Hopped . | . . . Potential Cave-ins . | . . . Cave-ins Triggered . | . . . Exploration Rate (%) 36 | 4 94 11 Regions Visited 2 Branch Regions 1 Pre-discovered Areas 3 | . 3 . Known Exits Taken . | . . . Unknown Exits Taken 2 | 1 1 . Scrap Searched . | . . . Spaces Dug 24 | . 24 . Terrain Destroyed 69 | . 69 . Melee . | . . . Projectile . | . . . AOE 69 | . 69 . Terrain Rammed . | . . . Walls Destroyed . | . . . Machines Disabled . | . . . Actions | -11 -10 -10 --------- Run | Yrd Mat Sub Total 982 | 47 817 118 Wait 125 | . 125 . Move 705 | 28 588 89 Hop . | . . . Pick Up 10 | 1 9 . Fast Attach 1 | 1 . . Attach 7 | 2 2 3 Detach . | . . . Swap 14 | 2 12 . Drop 4 | 2 2 . Fire 115 | 11 78 26 Melee . | . . . Ram . | . . . Kick . | . . . Crush 1 | . 1 . Escape Stasis . | . . . Rewire . | . . . Trap . | . . . Miscellaneous . | . . . Route ------- -11/Scrapyard -10/Materials (discovered 5 exits: *Mat x3 / [*Min] / [*Sub]) -10/Subcaves (discovered 3 exits: Mat x2 / Rec) History --------- Turn | Location | Event 23 | -11/Scrapyard | Discovered new exit (range 3) 79 | -11/Scrapyard | Entered Materials 226 | -10/Materials | Discovered new exit (range 9) 330 | -10/Materials | Build established: Mutant 484 | -10/Materials | Discovered new exit (range 8) 558 | -10/Materials | Destroyed 10 combat bots 672 | -10/Materials | Discovered new exit (range 9) 1001 | -10/Materials | Loaded intel: 23 trap records 1069 | -10/Materials | Discovered new exit (range 13) 1076 | -10/Materials | Learned Storage trap positions 1141 | -10/Materials | Learned 4 Subcaves zone layouts 1194 | -10/Materials | Learned 2 Mines zone layouts 1222 | -10/Materials | Discovered new exit (range 16) 1236 | -10/Materials | Identified exit to Materials 1270 | -10/Materials | Learned location of 2 exits from Subcaves 1294 | -10/Materials | Learned Storage security intel 1420 | -10/Materials | Learned 4 Subcaves zone layouts 1549 | -10/Materials | Entered Subcaves 1550 | -10/Subcaves | Identified exit to Materials 1551 | -10/Subcaves | Identified exit to Recycling 1581 | -10/Subcaves | Learned Materials terminal intel 1736 | -10/Subcaves | Core integrity fell below 50% 1756 | -10/Subcaves | Core integrity fell below 20% 1765 | -10/Subcaves | Destroyed by WZ-PIV(R) with Subdweller Machine Gun Last Messages --------------- Loading 8 Subcaves zones... 01581_ Acquired derelict log, extracted data. Data stored: Materials terminal intel. 01692_ 1U-LGI(R) suffers critical hit (Burn). 01695_ 1U-LGI(R) destroyed. 01695_ Switching to secondary target: L3-O6L(R). 01698_ L3-O6L(R) suffers critical hit (Burn). 01705_ Lgt. Treads destroyed. 01706_ Subatomizers dissect the Sub. Power Source. 01714_ L3-O6L(R) destroyed. 01715_ Med. Laser destroyed. 01718_ Subatomizers dissect the Sub. Monowheel. 01725_ Ion Engine destroyed. 01727_ Critical hit (Destroy). 01727_ Assault Rifle destroyed. 01733_ Subatomizers dissect the Sub. Monowheel. 01749_ Lgt. Treads destroyed. 01755_ Subatomizers dissect the Sub. Monowheel. 01763_ Assault Rifle destroyed. Map ----- +----------------------------------------------------+ | ????????????????????????????????????????? | | ????????????????????????????????????????? | | ????????????????????????????????????????? | | ????????????????????????????????????????? | | ????????????????????????????????????????? | | ????????????????????????????????????????? | | ????????????????????????????????????????? | | ????????????????????????????????????????? | | ????????????????????????????????????????? | | ?????????????????????????#### ## | | ?????????????????????????#### | | ????????????????#????????"## | | ???????????????# ##??????"" | | ???????????????# #??????"" ### | | ???????????????# ##?????#####?## ### | | ??????????????## ????????????# ##?# | | ??????????????# = ???????????## #??# | | ??????????????# *%#???###?????# ##?## | | ??????????????# !#??# #?????# #??## | | ??????????????# #?? #?????######???# | | ??????????????# #?? #??????????????? | | ??????????????# #?? ##?????????????? | | ?????????#??#?# ### #?????????????? | | ?????????# # #< &%## ##????????????? | | ??????????# & ! ##???????????? | | ?????????#$&"##R@ #???????????? | | ?????????????# ##???????????? | | ?????????????#### ##????????????? | | ???????????????## ##?????????????? | | ???????????????# ##??????????????? | | ???????????????## # #???????????????? | | ??????????????### # ##??????????????? | | ??????????????# ## #??????????????? | | ??????????????## # ##??????????????? | | ??????????????# ##???????????????? | | ??????????????## ##????????????????? | | ??????????????# ##?###???????????? | | ??????????????## ## # ### ##??????????? | | ???????????????# & ##?????????? | | ???????????????# " #?????????? | | ??????????????# # " ## #?????????? | | ??????????????# ""##### #?????????? | | ??????????????## #??## ##?????????? | | ???????????????## """ #?## ##?????????? | | ????????????????## "## #?????????? | | ?????????????????### & ## ###?????????? | | ??????????????????# ### #???????????? | | ??????????????????# ## ##???????????? | | ??????????????????## ###########??? | | ???????????????????# #??? | +----------------------------------------------------+ Best States ------------- Heat Dissipation 35 Energy Generation 10 Energy Capacity 250 Matter Stores 300 Matter Capacity 300 Sight Range 16 Terrain Scan Density 10 Evasion (%) 50 Recoil Reduction 2 Item Schematics ----------------- None Robot Schematics ------------------ None Fabricated ------------ Nothing Repaired ---------- Nothing Studied --------- None Alien Tech Used ----------------- None Achievements -------------- None Challenges ------------ None Game ------ Seed MagneticDataInverter Manual? 0 Play Time 00:10:23 Cumulative 389.0 hours Start 2026.04.05 @ 16:29:30 End 2026.04.05 @ 16:45:58 Sessions 1 Manual Loads 0 Difficulty Rogue Special Mode None Game No. 330 Rogue 294 Adventurer 36 Explorer 0 Win Type - Total 5 Types 2/0/0/1/0/0/0/2/0/0 Lore% 73 Gallery% 66 Achievement% 55 Wizard Run 0 Options --------- Layout 1 ASCII 0 Keyboard 0 Movement Numpad Keybinds 0 Fullscreen 1 Font 48/Smallcaps Map View 50x35 Zoom Use 0% Tactical HUD 1 Map Filters NONE Filters NONE Steam 1 RUN: dd886b04-eed1-479e-b002-c8b35872d7ce